Cogmind - Beta 9.1 @@@ ROGUE MODE // 2019.10.30 @ 19:42:14 // Halloween2019/Abominations Player: GridBugBear Result: Smashed by cave-in Performance ------------- Evolutions (1) 500 Regions Visited (2) 400 Robots Destroyed (21) 105 Value Destroyed (1118) 1118 Prototype IDs (0) 0 Alien Tech Used (0) 0 Bonus (0) 0 TOTAL SCORE: 2123 Bonus ------- None Cogmind --------- Core Integrity 0/400 Matter 270/300 Energy 14/100 System Corruption 24% Temperature Cool (1) Location -9/Materials Parts ------- Power (1) Propulsion (2) Light Treads Aluminum Leg Utility (3) Weapon (3) Improved Light Cannon Inventory (4) Aluminum Leg Small Storage Unit Light EM Pulse Cannon Particle Cannon Peak State ------------ Power Ion Engine Propulsion Compact Wheel Compact Wheel Utility Heat Sink Small Storage Unit Propulsion Shielding Weapon Heavy Assault Rifle Heavy Assault Rifle Heavy Assault Rifle Inventory Compact Wheel Light EM Pulse Cannon Grenade Launcher Mining Laser [Rating: 12] Favorites ----------- Power Ion Engine Engine Ion Engine Propulsion Compact Wheel Treads Light Treads Leg Aluminum Leg Wheel Compact Wheel Utility Small Storage Unit Device Heat Sink Storage Small Storage Unit Protection Propulsion Shielding Weapon Heavy Assault Rifle Energy Gun Heavy EM Pulse Gun Energy Cannon Light EM Pulse Cannon Ballistic Gun Heavy Assault Rifle Ballistic Cannon Improved Light Cannon Launcher Grenade Launcher Special Weapon Mining Laser Build | -11 -10 -9 ------- Run | Scr Mat Mat Slots Evolved 2 | . . 2 Power . | . . . Propulsion . | . . . Utility 1 | . . 1 Weapon 1 | . . 1 Parts Attached 31 | 6 2 23 Power 3 | 1 . 2 Engine 3 | 1 . 2 Core . | . . . Reactor . | . . . Propulsion 6 | 2 . 4 Treads 1 | . . 1 Leg 1 | . . 1 Wheel 4 | 2 . 2 Hover . | . . . Flight . | . . . Utility 5 | 1 1 3 Device 3 | . 1 2 Storage 1 | 1 . . Processor . | . . . Hackware . | . . . Protection 1 | . . 1 Artifact . | . . . Weapon 17 | 2 1 14 Energy Gun 2 | . . 2 Energy Cannon 1 | . . 1 Ballistic Gun 11 | 2 1 8 Ballistic Cannon 1 | . . 1 Launcher 1 | . . 1 Special Weapon 1 | . . 1 Impact Weapon . | . . . Slashing Weapon . | . . . Piercing Weapon . | . . . Special Melee Weapon . | . . . Unidentified Prototypes . | . . . Parts Lost 22 | . . 22 Power 3 | . . 3 Propulsion 4 | . . 4 Utility 4 | . . 4 Weapon 11 | . . 11 Highest Loss Streak 8 | . . 8 Average Slot Usage (%) 92 | . 100 91 Engine 10 | . 14 9 Wheel 21 | . 28 19 Device 9 | . 14 8 Storage 11 | . 14 11 Protection 9 | . . 10 Energy Gun 2 | . . 2 Ballistic Gun 25 | . 28 24 Launcher 2 | . . 2 Naked Turns . | . . . Heaviest Build 22 | 11 12 22 Greatest Support 32 | 32 32 32 Greatest Overweight (x) 2 | 2 . 1 Average Overweight (x) . | . . . Largest Inventory Capacity 6 | 6 6 6 Average Capacity 5 | 5 6 6 Most Carried 6 | 4 6 6 Average Carried 5 | 2 5 5 Final Capacity 6 | 6 6 4 Final Carried 6 | 4 6 4 Class Distribution -------------------- 53% | Tank 37% | Mutant 9% | Scavenger-Mutant Dominant Class ---------------- Mutant | -10/Materials Tank | -9/Materials Resources | -11 -10 -9 ----------- Run | Scr Mat Mat Matter Collected 959 | 266 32 661 Remotely . | . . . Salvage Created 1000 | 51 85 864 Parts 92 | 2 6 84 Haulers Intercepted 1 | . 1 . Recyclers Shooed . | . . . Parts Field Recycled . | . . . Retrieved Matter . | . . . Parts Self-Destructed . | . . . Prevented . | . . . Kills | -11 -10 -9 ------- Run | Scr Mat Mat Combat Hostiles Destroyed 19 | . 1 18 Guns 19 | . 1 18 Classes Destroyed 4 | 1 2 1 Hauler 1 | . 1 . Recycler 1 | 1 . . Sentry 2 | . . 2 Abomination 17 | . 1 16 Best Kill Streak 5 | 1 2 5 Combat Bots Only 5 | . 1 5 Max Kills in Single Turn 2 | 1 1 2 Gunslinging 1 | . . 1 Exploded . | . . . Melee . | . . . Uniques/NPCs Destroyed . | . . . Combat | -11 -10 -9 -------- Run | Scr Mat Mat Damage Taken 2546 | . 78 2468 Core 500 | . 30 470 Absorbed by Shields . | . . . Core Remaining (%) 94 | 100 88 . Volleys Fired 88 | 3 6 79 Largest 3 | 2 2 3 Hottest 102 | 40 40 102 Shots Fired 228 | 6 12 210 Gun 225 | 6 12 207 Cannon 3 | . . 3 Launcher . | . . . Special . | . . . Kinetic 223 | 6 12 205 Thermal 4 | . . 4 Explosive . | . . . Electromagnetic 1 | . . 1 Robot Hit Streak 13 | 4 5 13 Robot Miss Streak 5 | 1 1 5 Penetration Max . | . . . Secondary Targets 1 | . . 1 Max Gunslinging Chain 1 | . . 1 Shots Hit Robots 161 | 5 9 147 Core Hits 49 | 2 6 41 Critical Hits 1 | . . 1 Critical Kills . | . . . Critical Parts Destroyed 1 | . . 1 Melee Attacks . | . . . Impact . | . . . Slashing . | . . . Piercing . | . . . Sneak Attacks . | . . . Combat Hostiles . | . . . Follow-up Attacks . | . . . Damage Inflicted 2172 | 45 94 2033 Guns 2101 | 45 94 1962 Cannons 65 | . . 65 Explosions . | . . . Melee . | . . . Ramming 6 | . . 6 Kinetic 2113 | 45 94 1974 Thermal 53 | . . 53 Explosive . | . . . Electromagnetic . | . . . Impact . | . . . Slashing . | . . . Piercing . | . . . Highest Corruption 18 | . . 18 Average Corruption 8 | . . 8 Corruption Purged . | . . . Effects 27 | . . 27 Message Errors 3 | . . 3 Matter Fused 2 | . . 2 Heat Flow Errors 3 | . . 3 Energy Discharges 1 | . . 1 Data Loss (minor) 3 | . . 3 Data Loss (major) 1 | . . 1 Misdirections 1 | . . 1 Targeting Errors 8 | . . 8 Weapon Failures 5 | . . 5 Overload Shots . | . . . Overflow Damage 5 | . . 5 Projectiles 5 | . . 5 Explosions . | . . . Melee . | . . . Knockbacks 1 | . . 1 Impact . | . . . Kinetic 1 | . . 1 Secondary . | . . . Self-Inflicted Damage 3 | . . 3 Shots . | . . . Rammed 1 | . . 1 Targets Rammed 1 | . . 1 Kicked . | . . . Crushed . | . . . Highest Temperature 580 | . . 580 Average Temperature 173 | . . 173 Received Heat Transfer 210 | . 9 201 Effects 7 | . . 7 Energy Bleed 1 | . . 1 Interference 4 | . . 4 Short Circuit 1 | . . 1 Damage (major) 1 | . . 1 Siege Activations . | . . . Robots Corrupted . | . . . Combat Hostiles . | . . . Parts Fried . | . . . Impact Corruptions . | . . . Robots Melted . | . . . Combat Hostiles . | . . . Parts Melted . | . . . Heat Transferred 24 | . . 24 Parts Sabotaged . | . . . Parts Stolen . | . . . Parts Stripped . | . . . Power Chain Reactions . | . . . Missiles Intercepted . | . . . Alert | -11 -10 -9 ------- Run | Scr Mat Mat Peak Influence 94 | 5 25 94 Average Influence 5 | 1 8 5 Maximum Alert Level . | . . . Low Security (%) 100 | . . . Level 1 . | . . . Level 2 . | . . . Level 3 . | . . . Level 4 . | . . . Level 5 . | . . . High Security . | . . . Max Security . | . . . Squads Dispatched 15 | . 2 13 Investigation 2 | . 1 1 Extermination . | . . . Reinforcement 4 | . 1 3 Assault 9 | . . 9 Garrison . | . . . Intercept . | . . . Construction Impeded . | . . . Haulers Reinforced . | . . . Stealth | -11 -10 -9 --------- Run | Scr Mat Mat Distress Signals 9 | . 2 7 Communications Jammed . | . . . Distress Signals . | . . . Times Spotted 35 | . 5 30 Peak Tracking Total 10 | . 4 10 Tactical Retreats 9 | . 1 8 Traps | -11 -10 -9 ------- Run | Scr Mat Mat Traps Triggered . | . . . Indirectly . | . . . Trap Hack Attempts . | . . . Triggered . | . . . Disarmed . | . . . Reprogrammed . | . . . Reused . | . . . Traps Extracted . | . . . Installed . | . . . Triggered . | . . . Machines | -11 -10 -9 ---------- Run | Scr Mat Mat Machines Disabled . | . . . Max in Single Turn . | . . . Machines Sabotaged . | . . . Garrisons Compromised . | . . . Overloaded Fab Kills . | . . . Fab Network Shutdowns . | . . . Hacking | -11 -10 -9 --------- Run | Scr Mat Mat Machines Accessed 5 | . . 5 Terminals 5 | . . 5 Fabricators . | . . . Repair Stations . | . . . Recycling Units . | . . . Scanalyzers . | . . . Garrison Access . | . . . Total Hacks 21 | . . 21 Successful 14 | . . 14 Failed 7 | . . 7 Catastrophic . | . . . Database Lockouts . | . . . Manual 20 | . . 20 Terminals 21 | . . 21 Fabricators . | . . . Repair Stations . | . . . Recycling Units . | . . . Scanalyzers . | . . . Garrison Access . | . . . Terminal Hacks 5 | . . 5 Unreport Threat 3 | . . 3 Locate Traps 2 | . . 2 Fabricator Hacks . | . . . Repair Station Hacks . | . . . Recycling Unit Hacks . | . . . Scanalyzer . | . . . Garrison Access Hacks . | . . . Unauthorized Hacks 24 | . . 24 Terminals 9 | . . 9 Track 5 | . . 5 Botnet 4 | . . 4 Fabricators . | . . . Repair Stations . | . . . Recycling Units . | . . . Scanalyzers . | . . . Garrison Access . | . . . Data Cores Recovered . | . . . Used . | . . . Hacking Detections 5 | . . 5 Full Trace Events 1 | . . 1 Feedback Events . | . . . Feedback Blocked . | . . . Robot Schematics Acquired . | . . . Robots Built . | . . . Matter . | . . . Time . | . . . Total Robot Build Rating . | . . . Part Schematics Acquired . | . . . Parts Built . | . . . Matter . | . . . Time . | . . . Total Part Build Rating . | . . . Parts Repaired . | . . . Time . | . . . Parts Recycled . | . . . Recycled Matter . | . . . Retrieved Matter . | . . . Retrieved Components . | . . . Parts Scanalyzed . | . . . Part Schematics Acquired . | . . . Parts Damaged . | . . . Bothacking | -11 -10 -9 ------------ Run | Scr Mat Mat Used RIF Installer . | . . . Robots Hacked . | . . . Non-combat . | . . . Combat . | . . . Robot Hacks Applied . | . . . Relay Couplers Released . | . . . Robots Rewired . | . . . Allies Hacked . | . . . Hacks Repelled . | . . . Allies | -11 -10 -9 -------- Run | Scr Mat Mat Total Allies . | . . . Largest Group . | . . . Highest-Rated Group . | . . . Highest-Rated Ally . | . . . Total Orders . | . . . Ally Attacks . | . . . Total Damage . | . . . Kills . | . . . Allies Corrupted . | . . . Allies Melted . | . . . Intel | -11 -10 -9 ------- Run | Scr Mat Mat Robot Analysis Total . | . . . Derelict Logs Recovered . | . . . Drone Launches . | . . . Drone Recoveries . | . . . Exploration | -11 -10 -9 ------------- Run | Scr Mat Mat Turns Passed 990 | 70 142 778 Spaces Moved 559 | 57 119 383 Core 21 | 21 . . Treads 6 | . . 6 Legs . | . . . Wheels 532 | 36 119 377 Hover . | . . . Flight . | . . . Fastest Speed 50 | 50 100 100 Average Speed 99 | 83 100 101 Slowest Speed 160 | 150 100 160 Overloaded Moves . | . . . Propulsion Burnouts . | . . . Robots Hopped . | . . . Cave-ins Triggered 1 | . . 1 Exploration Rate (%) 22 | 3 24 39 Regions Visited 2 Branch Regions . Pre-discovered Areas . | . . . Known Exits Taken . | . . . Unknown Exits Taken 2 | 1 1 . Scrap Searched . | . . . Spaces Dug . | . . . Terrain Destroyed . | . . . Melee . | . . . Projectile . | . . . AOE . | . . . Actions | -11 -10 -9 --------- Run | Scr Mat Mat Total 778 | 72 133 573 Wait 74 | 1 1 72 Move 555 | 56 117 382 Hop . | . . . Pick Up 21 | 6 4 11 Fast Attach 12 | 4 1 7 Attach 14 | 2 . 12 Detach . | . . . Swap 5 | . 1 4 Drop 8 | . 3 5 Fire 88 | 3 6 79 Melee . | . . . Ram 1 | . . 1 Kick . | . . . Crush . | . . . Escape Stasis . | . . . Rewire . | . . . Trap . | . . . Miscellaneous . | . . . Route ------- -11/Scrapyard -10/Materials -9/Materials History --------- Turn | Location | Event 9 | -11/Scrapyard | Discovered new exit (range 16) 71 | -11/Scrapyard | Entered Materials 87 | -10/Materials | Discovered new exit (range 15) 183 | -10/Materials | Discovered new exit (range 14) 213 | -10/Materials | Entered another Materials area 213 | -9/Materials | Evolved 2 slots: Utility x1, Weapon x1 499 | -9/Materials | Build established: Tank 720 | -9/Materials | System corruption reached 10% 783 | -9/Materials | Lost 8 parts (1p1n1u5w) 822 | -9/Materials | Core integrity fell below 50% 965 | -9/Materials | Lost 4 parts (1p1n2w) 985 | -9/Materials | Core integrity fell below 20% 991 | -9/Materials | Crushed by falling debris 991 | -9/Materials | Smashed by cave-in Last Messages --------------- 00978_ Hvy. Assault Rifle destroyed. 00980_ Minor Abomination knocked back. 00982_ Minor Abomination spits out Wheel. 00982_ Minor Abomination absorbs Arm. Wheel. 00983_ Minor Abomination spits out Heat Sink. 00983_ Minor Abomination absorbs Imp. Heat Sink. 00984_ Sml. Laser destroyed. 00987_ K-01 Serf heat damages Lgt. Ion Engine, Wheel, Med. Matter Pod. 00988_ U-05 Engineer builds a Wall. 00989_ K-01 Serf heat damages core (-2). 00989_ U-05 Engineer heat short circuits Terrain Scan Processor. 00989_ K-01 Serf cleans the Electrolysis Chamber. 00991_ The unstable cave ceiling collapses. 00991_ Crushed by falling debris. 00991_ Cooling System destroyed. 00991_ System corrupted by crushing effect (+2). 00991_ Propulsion Shielding destroyed. 00991_ System corrupted by crushing effect (+2). 00991_ Sml. Storage Unit destroyed. 00991_ System corrupted by crushing effect (+2). Map ----- +----------------------------------------------------+ | ????????????????????? ???????????# %#?????????? | | ?????????????????????%!???????????# ##?????????? | | ???????????????????? !%???????????# #??????????? | | ????????????????????=% ???????????# #??????????? | | ???????????????????? =%???????????#% #??????????? | | ????????????????????#+???########?# #??????????? | | ?????????????????????!??# ""?# #??????????? | | ??????????????????? " " ? ""S #%% +??????????? | | ??????????????????# "!" # """%"" #% #??????????? | | ??????????????????# "%" # """ %+ #??????????? | | ?????????????????? " " # """ #n #??????????? | | ??????????????????# " ; # #A #??????????? | | ?????????????????## ; ; # ?# %#??????????? | | ?????????????????? ; ; # ?# %#??????????? | | ??????????????????# ; ;;########??# #??????????? | | ?????????????????## ;%;; #????#% #??????????? | | ?????????????????? ; ;; %T ######%% #??????????? | | ??????????????????# ;! "" %A %% %% #??????????? | | ????????????????###";=;;% A #######+##??????????? | | ????????????????# !!; % #?????? ???????????? | | ????????????????# A;;;%;;#?????? ???????????? | | ????????????????# A; ;%; #?????? ???????????? | | ????????????????# ; ;%; #??????""???????????? | | ????????????????# # ;k; #??????""???????????? | | ????????????????# # ;%; #???????????????????? | | ????????????????#######;;@/#"#???????????????????? | | ??????????????????????# u #???????????????????? | | ??????????????????????# %%#???????????????????? | | ??????????????????????# """%#???????????????????? | | ??????????????????????# """k; ??????????????????? | | ??????????????????????# """%; #?????????????????? | | ??????????????????????# %; #?????????????????? | | ??????????????????????#;##;;;;##?????????????????? | | ??????????????????????%%??% % ?????????????????? | | ?????????????????????? %?? ???%% ????????????????? | | ?????????????????????? ??????? ? ???????????????? | | ?????????????????????;;;?????????????????????????? | | ????????????????????? ?????????????????????????? | | ?????????????????????###?????????????????????????? | | ?????????????????????????????????????????????????? | | ?????????????????????????????????????????????????? | | ?????????????????????????????????????????????????? | | ?????????????????????????????????????????????????? | | ?????????????????????????????????????????????????? | | ?????????????????????????????????????????????????? | | ?????????????????????????????????????????????????? | | ?????????????????????????????????????????????????? | | ?????????????????????????????????????????????????? | | | | | +----------------------------------------------------+ Best States ------------- Heat Dissipation 50 Energy Generation 12 Energy Capacity 265 Matter Stores 300 Matter Capacity 300 Sight Range 16 Terrain Scan Density 10 Propulsion Shielding 33 Evasion (%) 50 Recoil Reduction 1 Item Schematics ----------------- None Robot Schematics ------------------ None Fabricated ------------ Nothing Alien Tech Used ----------------- None Achievements -------------- None Challenges ------------ None Game ------ Seed FocalGyrokineticProjector Manual? 0 Play Time 00:18:44 Cumulative 464.5 hours Start 2019.10.30 @ 18:29:24 End 2019.10.30 @ 19:42:14 Sessions 1 Manual Loads 0 Difficulty Rogue Special Mode Halloween2019/Abominations Game No. 221 Rogue 221 Adventurer 0 Explorer 0 Win Type - Total 31 Types 18/1/6/6/0/0/0 Lore% 94 Gallery% 92 Achievement% 80 Wizard Run 0 Options --------- ASCII 0 Keyboard 0 Movement Vi Keybinds 0 Fullscreen 1 Font 18/SmallcapsGlow Map View 76x50 Tactical HUD 1 Map Filters NONE Filters NONE Steam 0 RUN: 1b99d3cf-2a02-4790-9b45-865db867b3e3